[Event "IMSA Blitz Men 2019"]
[Site "Hengshui"]
[Date "2019.05.18"]
[Round "10.2"]
[White "Bu, Xiangzhi"]
[Black "Fedoseev, Vladimir"]
[Result "1-0"]
[ECO "D58"]
[WhiteElo "2729"]
[BlackElo "2683"]
[Annotator "RC"]
[PlyCount "81"]
[EventDate "2019.05.17"]
[EventType "blitz"]
[EventCountry "CHN"]
[SourceTitle "playchess.com"]
[Source "ChessBase"]
[SourceQuality "1"]
[TimeControl "180+2"]

1. Nf3 {[%emt 0:00:00]} Nf6 {[%emt 0:00:00]} 2. c4 {[%emt 0:00:00]} e6 {[%emt 0:00:00]} 3. Nc3 {[%emt 0:00:00]} d5 {[%emt 0:00:01]} 4. d4 {[%emt 0:00:01]} Be7 {[%emt 0:00:01]} 5. Bg5 {[%emt 0:00:05]} h6 {[%emt 0:00:03]} 6. Bh4 {[%emt 0:00:00]} O-O {[%emt 0:00:08]} 7. e3 {[%emt 0:00:01]} b6 {[%emt 0:00:01]} 8. Bd3 {[%emt 0:00:06]} Bb7 {[%emt 0:00:01]} 9. O-O {[%emt 0:00:01]} Nbd7 {[%emt 0:00:03]} 10. Qe2 {[%emt 0:00:02]} c5 {[%emt 0:00:03]} 11. cxd5 {[%emt 0:00:02]} Nxd5 {[%emt 0:00:06]} 12. Bxe7 {[%emt 0:00:03]} Qxe7 {[%emt 0:00:21]} 13. Nxd5 {[%emt 0:00:14]} Bxd5 {[%emt 0:00:02]} 14. Rfd1 {[%emt 0:00:12]} Bxf3 {[%emt 0:00:16]} 15. Qxf3 {[%emt 0:00:02]} cxd4 {[%emt 0:00:04]} 16. Qe4 {[%emt 0:00:09]} Nf6 {[%emt 0:00:01]} 17. Qxd4 {[%emt 0:00:01]} Rfd8 {[%emt 0:00:01]} 18. Qa4 {[%emt 0:00:05]} Rac8 {[%emt 0:00:05]} 19. Be2 {[%emt 0:00:04]} Rxd1+ {[%emt 0:00:10]} 20. Rxd1 {[%emt 0:00:00]} g6 {[%emt 0:00:06]} 21. g3 {[%emt 0:00:04]} Kg7 {[%emt 0:00:03]} 22. Bf3 {[%emt 0:00:03]} Rc5 {[%emt 0:00:05]} 23. Kg2 {[%emt 0:00:03]} Qc7 {[%emt 0:00:05]} 24. Rd2 {[%emt 0:00:12]} e5 {[%emt 0:00:08]} 25. a3 {[%emt 0:00:10]} a5 {[%emt 0:00:18]} 26. Qb3 {[%emt 0:00:06]} b5 {[%emt 0:00:41]} 27. Qd3 {[%emt 0:00:09]} Rc4 {[%emt 0:00:12]} 28. Bd5 {[%emt 0:00:17]} Rc1 {[%emt 0:00:21]} 29. Qxb5 {[%emt 0:00:11]} Rc5 {[%emt 0:00:02]} 30. Qb3 {[%emt 0:00:07]} a4 {[%emt 0:00:02]} 31. Qd1 {[%emt 0:00:07]} Rc1 {[%emt 0:00:05]} 32. Qxa4 {[%emt 0:00:08]} Ra1 {[%emt 0:00:08]} 33. Rd1 {[%emt 0:00:24]} Rc1 {[%emt 0:00:10]} 34. Rxc1 {[%emt 0:00:21]} Qxc1 {[%emt 0:00:01]} 35. Bb3 {[%emt 0:00:01]} Qc7 {[%emt 0:00:10]} 36. Qb5 {[%emt 0:00:07]} h5 {[%emt 0:00:02]} 37. h3 {[%emt 0:00:01]} Ne4 {[%emt 0:00:02]} 38. Qd5 {[%emt 0:00:04]} Nf6 {[%emt 0:00:02]} 39. Qb5 {[%emt 0:00:03]} Ne4 {[%emt 0:00:01]} 40. Qc4 {[%emt 0:00:02]} Qb7 {[%emt 0:00:05]} 41. Qd5 {[%emt 0:00:01]} 1-0

[Event "IMSA Blitz Men 2019"]
[Site "Hengshui"]
[Date "2019.05.18"]
[Round "10.2"]
[White "Vidit, Santosh Gujrathi"]
[Black "Gelfand, Boris"]
[Result "1-0"]
[ECO "A40"]
[WhiteElo "2707"]
[BlackElo "2676"]
[Annotator "RC"]
[PlyCount "102"]
[EventDate "2019.05.17"]
[EventType "blitz"]
[EventCountry "CHN"]
[SourceTitle "playchess.com"]
[Source "ChessBase"]
[SourceQuality "1"]
[TimeControl "180+2"]

1. d4 {[%emt 0:00:00]} Nf6 {[%emt 0:00:00]} 2. c4 {[%emt 0:00:00]} e6 {[%emt 0:00:00]} 3. g3 {[%emt 0:00:01]} Bb4+ {[%emt 0:00:05]} 4. Nd2 {[%emt 0:00:02]} O-O {[%emt 0:00:08]} 5. Bg2 {[%emt 0:00:01]} d5 {[%emt 0:00:01]} 6. Ngf3 {[%emt 0:00:02]} b6 {[%emt 0:00:03]} 7. O-O {[%emt 0:00:02]} Bb7 {[%emt 0:00:01]} 8. Ne5 {[%emt 0:00:03]} Re8 {[%emt 0:00:05]} 9. Qc2 {[%emt 0:00:09]} Bf8 {[%emt 0:00:14]} 10. cxd5 {[%emt 0:00:25]} exd5 {[%emt 0:00:05]} 11. Ndf3 {[%emt 0:00:03]} h6 {[%emt 0:00:02]} 12. Bf4 {[%emt 0:00:08]} c5 {[%emt 0:00:05]} 13. Rfd1 {[%emt 0:00:02]} Na6 {[%emt 0:00:05]} 14. Rac1 {[%emt 0:00:13]} Qc8 {[%emt 0:00:20]} 15. h4 {[%emt 0:00:20]} Nc7 {[%emt 0:00:04]} 16. dxc5 {[%emt 0:00:09]} bxc5 {[%emt 0:00:02]} 17. Nd3 {[%emt 0:00:09]} Ne6 {[%emt 0:00:11]} 18. Be5 {[%emt 0:00:10]} Nd7 {[%emt 0:00:13]} 19. b3 {[%emt 0:00:04]} Qd8 {[%emt 0:00:20]} 20. e3 {[%emt 0:00:16]} Qb6 {[%emt 0:00:14]} 21. Ba1 {[%emt 0:00:07]} Rac8 {[%emt 0:00:07]} 22. Nde5 {[%emt 0:00:09]} Nxe5 {[%emt 0:00:03]} 23. Nxe5 {[%emt 0:00:02]} d4 {[%emt 0:00:09]} 24. Qf5 {[%emt 0:00:04]} Rc7 {[%emt 0:00:11]} 25. exd4 {[%emt 0:00:14]} cxd4 {[%emt 0:00:08]} 26. Rxc7 {[%emt 0:00:11]} Qxc7 {[%emt 0:00:01]} 27. Bxb7 {[%emt 0:00:06]} Qxb7 {[%emt 0:00:01]} 28. Qf3 {[%emt 0:00:18]} Qc7 {[%emt 0:00:25]} 29. Qc6 {[%emt 0:00:02]} Rc8 {[%emt 0:00:02]} 30. Qxc7 {[%emt 0:00:02]} Rxc7 {[%emt 0:00:00]} 31. Bxd4 {[%emt 0:00:07]} Rc2 {[%emt 0:00:14]} 32. Bxa7 {[%emt 0:00:04]} Rxa2 {[%emt 0:00:01]} 33. Be3 {[%emt 0:00:02]} Rb2 {[%emt 0:00:09]} 34. Rd3 {[%emt 0:00:02]} Nc5 {[%emt 0:00:04]} 35. Bxc5 {[%emt 0:00:02]} Bxc5 {[%emt 0:00:00]} 36. Rf3 {[%emt 0:00:07]} f6 {[%emt 0:00:05]} 37. Nc4 {[%emt 0:00:03]} Rc2 {[%emt 0:00:03]} 38. h5 {[%emt 0:00:03]} Kf7 {[%emt 0:00:03]} 39. Kg2 {[%emt 0:00:02]} Ke6 {[%emt 0:00:03]} 40. g4 {[%emt 0:00:02]} Ba7 {[%emt 0:00:04]} 41. Ne3 {[%emt 0:00:04]} Bxe3 {[%emt 0:00:06]} 42. Rxe3+ {[%emt 0:00:01]} Kf7 {[%emt 0:00:00]} 43. Re4 {[%emt 0:00:08]} f5 {[%emt 0:00:05]} 44. Rf4 {[%emt 0:00:02]} Rb2 {[%emt 0:00:02]} 45. Rxf5+ {[%emt 0:00:01]} Ke6 {[%emt 0:00:01]} 46. Rb5 {[%emt 0:00:02]} Kf6 {[%emt 0:00:01]} 47. Kg3 {[%emt 0:00:01]} Ke6 {[%emt 0:00:01]} 48. f3 {[%emt 0:00:01]} Kf6 {[%emt 0:00:01]} 49. Kf4 {[%emt 0:00:01]} Rc2 {[%emt 0:00:03]} 50. Rb6+ Kf7 {[%emt 0:00:01]} 51. b4 {[%emt 0:00:02]} Rc4+ {[%emt 0:00:01]} 1-0

[Event "IMSA Blitz Men 2019"]
[Site "Hengshui"]
[Date "2019.05.18"]
[Round "10.2"]
[White "Cheparinov, Ivan"]
[Black "Wang, Hao"]
[Result "1-0"]
[ECO "E11"]
[WhiteElo "2667"]
[BlackElo "2735"]
[Annotator "RC"]
[PlyCount "73"]
[EventDate "2019.05.17"]
[EventType "blitz"]
[EventCountry "CHN"]
[SourceTitle "playchess.com"]
[Source "ChessBase"]
[SourceQuality "1"]
[TimeControl "180+2"]

1. d4 {[%emt 0:00:00]} Nf6 {[%emt 0:00:00]} 2. c4 {[%emt 0:00:00]} e6 {[%emt 0:00:01]} 3. Nf3 {[%emt 0:00:00]} Bb4+ {[%emt 0:00:02]} 4. Nbd2 {[%emt 0:00:02]} O-O {[%emt 0:00:02]} 5. a3 {[%emt 0:00:00]} Be7 {[%emt 0:00:01]} 6. e4 {[%emt 0:00:01]} d6 {[%emt 0:00:01]} 7. Qc2 {[%emt 0:00:04]} Nfd7 {[%emt 0:00:06]} 8. Be2 {[%emt 0:00:05]} c5 {[%emt 0:00:19]} 9. d5 {[%emt 0:00:03]} Bf6 {[%emt 0:00:01]} 10. O-O {[%emt 0:00:06]} Re8 {[%emt 0:00:02]} 11. Bd3 {[%emt 0:00:14]} Ne5 {[%emt 0:00:12]} 12. Nxe5 {[%emt 0:00:01]} Bxe5 {[%emt 0:00:01]} 13. Nf3 {[%emt 0:00:04]} Nd7 {[%emt 0:00:03]} 14. Nxe5 {[%emt 0:00:12]} Nxe5 {[%emt 0:00:02]} 15. Be2 {[%emt 0:00:01]} exd5 {[%emt 0:00:08]} 16. cxd5 {[%emt 0:00:01]} Qf6 {[%emt 0:00:14]} 17. Bd2 {[%emt 0:00:15]} Qg6 {[%emt 0:00:07]} 18. f4 {[%emt 0:00:15]} Bg4 {[%emt 0:00:21]} 19. Bxg4 {[%emt 0:00:27]} Nxg4 {[%emt 0:00:02]} 20. Rae1 {[%emt 0:00:01]} Re7 {[%emt 0:00:30]} 21. h3 {[%emt 0:00:07]} Nf6 {[%emt 0:00:07]} 22. f5 {[%emt 0:00:01]} Qh5 {[%emt 0:00:02]} 23. Bf4 {[%emt 0:00:15]} Rd8 {[%emt 0:00:11]} 24. Re3 {[%emt 0:00:05]} Ne8 {[%emt 0:00:08]} 25. g4 {[%emt 0:00:15]} Qh4 {[%emt 0:00:02]} 26. Kg2 {[%emt 0:00:16]} Qf6 {[%emt 0:00:15]} 27. g5 {[%emt 0:00:04]} Qd4 {[%emt 0:00:02]} 28. Rd1 {[%emt 0:00:01]} Qxe3 {[%emt 0:00:05]} 29. Bxe3 {[%emt 0:00:01]} f6 {[%emt 0:00:03]} 30. h4 {[%emt 0:00:03]} b6 {[%emt 0:00:02]} 31. Bf4 {[%emt 0:00:02]} Nc7 {[%emt 0:00:03]} 32. Kf3 {[%emt 0:00:03]} Nb5 {[%emt 0:00:01]} 33. gxf6 {[%emt 0:00:03]} gxf6 {[%emt 0:00:01]} 34. Rg1+ {[%emt 0:00:04]} Kh8 {[%emt 0:00:03]} 35. Qg2 {[%emt 0:00:08]} Nd4+ {[%emt 0:00:02]} 36. Kf2 {[%emt 0:00:01]} Rde8 {[%emt 0:00:09]} 37. Bxd6 {[%emt 0:00:04]} 1-0

[Event "IMSA Blitz Men 2019"]
[Site "Hengshui"]
[Date "2019.05.18"]
[Round "11.2"]
[White "Yu, Yangyi"]
[Black "Korobov, Anton"]
[Result "0-1"]
[ECO "B32"]
[WhiteElo "2739"]
[BlackElo "2687"]
[Annotator "RC"]
[PlyCount "108"]
[EventDate "2019.05.17"]
[EventType "blitz"]
[EventCountry "CHN"]
[SourceTitle "playchess.com"]
[Source "ChessBase"]
[SourceQuality "1"]
[TimeControl "180+2"]

1. e4 {[%emt 0:00:00]} c5 {[%emt 0:00:00]} 2. Nf3 {[%emt 0:00:00]} Nc6 {[%emt 0:00:00]} 3. d4 {[%emt 0:00:02]} cxd4 {[%emt 0:00:01]} 4. Nxd4 {[%emt 0:00:01]} Qb6 {[%emt 0:00:01]} 5. Nb3 {[%emt 0:00:03]} Nf6 {[%emt 0:00:02]} 6. Nc3 {[%emt 0:00:00]} e6 {[%emt 0:00:01]} 7. Be3 {[%emt 0:00:02]} Qc7 {[%emt 0:00:02]} 8. Bd3 {[%emt 0:00:01]} a6 {[%emt 0:00:02]} 9. f4 {[%emt 0:00:02]} d6 {[%emt 0:00:01]} 10. Qf3 {[%emt 0:00:02]} Be7 {[%emt 0:00:02]} 11. g4 {[%emt 0:00:01]} b5 {[%emt 0:00:02]} 12. g5 {[%emt 0:00:01]} Nd7 {[%emt 0:00:01]} 13. O-O-O {[%emt 0:00:01]} Nb4 {[%emt 0:00:07]} 14. Kb1 {[%emt 0:00:01]} Bb7 {[%emt 0:00:01]} 15. Rhg1 {[%emt 0:00:06]} O-O {[%emt 0:00:16]} 16. Rg3 {[%emt 0:00:04]} Nxd3 {[%emt 0:00:22]} 17. cxd3 {[%emt 0:00:02]} f5 {[%emt 0:00:05]} 18. gxf6 {[%emt 0:00:15]} Bxf6 {[%emt 0:00:02]} 19. Qg4 {[%emt 0:00:25]} Rae8 {[%emt 0:00:01]} 20. Rc1 {[%emt 0:00:18]} Qd8 {[%emt 0:00:02]} 21. Rh3 {[%emt 0:00:05]} g6 {[%emt 0:00:10]} 22. Nd4 {[%emt 0:00:10]} Qe7 {[%emt 0:00:09]} 23. Nf3 {[%emt 0:00:22]} Nc5 {[%emt 0:00:08]} 24. Bxc5 {[%emt 0:00:18]} dxc5 {[%emt 0:00:01]} 25. Rg3 {[%emt 0:00:24]} c4 {[%emt 0:00:05]} 26. dxc4 {[%emt 0:00:05]} Bxc3 {[%emt 0:00:10]} 27. Rxc3 {[%emt 0:00:03]} Bxe4+ {[%emt 0:00:02]} 28. Ka1 {[%emt 0:00:01]} Qd6 {[%emt 0:00:08]} 29. Ng5 {[%emt 0:00:31]} Rxf4 {[%emt 0:00:12]} 30. Qe2 {[%emt 0:00:02]} Bf5 {[%emt 0:00:09]} 31. Rg1 {[%emt 0:00:09]} bxc4 {[%emt 0:00:04]} 32. Qe3 {[%emt 0:00:10]} Qd4 {[%emt 0:00:06]} 33. Qxd4 {[%emt 0:00:05]} Rxd4 34. Nf3 Rd3 {[%emt 0:00:04]} 35. Ne5 {[%emt 0:00:01]} Rxc3 {[%emt 0:00:06]} 36. bxc3 {[%emt 0:00:01]} Rd8 {[%emt 0:00:07]} 37. Rg2 {[%emt 0:00:13]} Rd5 {[%emt 0:00:10]} 38. Nc6 {[%emt 0:00:03]} Kg7 {[%emt 0:00:04]} 39. Kb2 {[%emt 0:00:02]} e5 {[%emt 0:00:06]} 40. Nb4 {[%emt 0:00:02]} Rd6 {[%emt 0:00:04]} 41. a4 {[%emt 0:00:05]} a5 {[%emt 0:00:02]} 42. Na2 {[%emt 0:00:00]} Kf6 {[%emt 0:00:03]} 43. Nc1 {[%emt 0:00:02]} h5 {[%emt 0:00:04]} 44. h4 {[%emt 0:00:02]} Bg4 {[%emt 0:00:03]} 45. Rf2+ {[%emt 0:00:01]} Ke6 {[%emt 0:00:02]} 46. Kc2 {[%emt 0:00:02]} Bf5+ {[%emt 0:00:06]} 47. Kb2 {[%emt 0:00:01]} e4 {[%emt 0:00:01]} 48. Ne2 {[%emt 0:00:01]} Ke5 {[%emt 0:00:04]} 49. Nd4 {[%emt 0:00:02]} e3 {[%emt 0:00:03]} 50. Rh2 {[%emt 0:00:06]} Rxd4 {[%emt 0:00:03]} 51. cxd4+ {[%emt 0:00:01]} Kxd4 {[%emt 0:00:01]} 52. Kc1 {[%emt 0:00:03]} c3 {[%emt 0:00:01]} 53. Rg2 {[%emt 0:00:01]} Bg4 {[%emt 0:00:01]} 54. Rg1 Kd3 0-1